lending/lending_fUSD_20240219
["ID","MTS","AMOUNT","RATE_DAILY","PERIOD"]
[314433834,1708341046593,-230.12,0.00039569,2]
[314433835,1708341046602,-334.94693484,0.00039593,2]
[314433836,1708341046611,-334.94693483,0.00039593,2]
[314433837,1708341046620,-334.94693483,0.00039593,2]
[314433838,1708341046629,-200.0,0.000396,13]
[314433839,1708341046638,-4490.37128229,0.00039613,2]
[314433840,1708341046648,-5104.82775028,0.00039613,2]
[314433841,1708341046657,-150.0,0.0003962,2]
[314433842,1708341046667,-154.40787453,0.00039633,5]
[314433843,1708341046677,-152.0,0.000397,7]
[314433844,1708341046686,-2554.3813699,0.00039703,2]
[314433845,1708341046695,-377.73,0.00039726,2]
[314433846,1708341046704,-230.12,0.00039759,2]
[314433847,1708341046714,-1914.25,0.00039779,2]
[314433848,1708341046723,-295.07045189,0.00039781,7]
[314433849,1708341046732,-180.0,0.00039785,7]
[314433850,1708341046742,-152.0,0.00039837,7]
[314433851,1708341046751,-11751.21,0.00039863,2]
[314433852,1708341046760,-571.11,0.0003996,2]
[314433853,1708341046770,-152.0,0.00039974,7]
[314433854,1708341046780,-229.01176041,0.00039999,31]
[314433855,1708341046789,-500.0,0.00039999,31]
[314433856,1708341046799,-238.50255906,0.00039999,31]
[314433857,1708341046808,-629.93237106,0.00039999,31]
[314433858,1708341046817,-643.25216221,0.00039999,31]
[314433859,1708341046828,-175.99310225,0.00039999,31]
[314433860,1708341046837,-392.0511967,0.00039999,2]
[314433861,1708341046847,-283.46875159,0.00039999,2]
[314433862,1708341046856,-500.0,0.00039999,31]
[314433863,1708341046865,-500.0,0.00039999,31]
[314433864,1708341046875,-500.0,0.00039999,31]
[314433865,1708341046884,-500.0,0.00039999,31]
[314433866,1708341046894,-597.03173868,0.00039999,31]
[314433867,1708341046903,-497.82036,0.00039999,31]
[314433868,1708341046913,-500.0,0.00039999,31]
[314433869,1708341046923,-500.0,0.00039999,31]
[314433870,1708341046932,-500.0,0.00039999,31]
[314433871,1708341046941,-500.0,0.00039999,31]
[314433872,1708341046951,-500.0,0.00039999,31]
[314433873,1708341046961,-500.0,0.00039999,31]
[314433874,1708341046970,-500.0,0.00039999,31]
[314433875,1708341046980,-500.0,0.00039999,31]
[314433876,1708341046989,-500.0,0.00039999,31]
[314433877,1708341046999,-500.0,0.00039999,31]
[314433878,1708341047009,-282.19523231,0.00039999,31]
[314433879,1708341047018,-500.0,0.00039999,31]
[314433880,1708341047027,-500.0,0.00039999,31]
[314433881,1708341047037,-491.51376351,0.0004,4]
[314433882,1708341047046,-100210.08046101,0.0004,2]
[314433883,1708341047055,-310.74433065,0.0004,30]
[314433884,1708341047064,-14749.70610239,0.0004,30]
[314433885,1708341047074,-670.45567179,0.0004,30]
[314433886,1708341047084,-500.0,0.0004,7]
[314433887,1708341047092,-305.0,0.0004,7]
[314433888,1708341047101,-302.0,0.0004,7]
[314433889,1708341047111,-503.0,0.0004,7]
[314433890,1708341047120,-255.0,0.0004,12]
[314433891,1708341047130,-10000.0,0.0004,14]
[314433892,1708341047140,-1000.0,0.0004,2]
[314433893,1708341047149,-255.0,0.0004,12]
[314433894,1708341047159,-394.14063034,0.0004,4]
[314433895,1708341047168,-255.0,0.0004,12]
[314433896,1708341047177,-5000.72,0.0004,2]
[314433897,1708341047187,-527.8,0.0004,2]
[314433898,1708341047197,-1000.0,0.0004,2]
[314433899,1708341047209,-4490.37128229,0.00040014,2]
[314433900,1708341047219,-5104.82775028,0.00040014,2]
[314433901,1708341047229,-152.0,0.00040111,7]
[314433902,1708341047239,-184.81,0.00040113,2]
[314433903,1708341047249,-151.0,0.00040117,4]
[314433904,1708341047260,-152.0,0.00040248,7]
[314433905,1708341047269,-304.02,0.000403,2]
[314433906,1708341047278,-489.68,0.00040333,2]
[314433907,1708341047288,-1488.5,0.0004034,2]
[314433908,1708341047297,-150.0,0.00040375,2]
[314433909,1708341047306,-159.0,0.00040385,7]
[314433910,1708341047315,-152.0,0.00040385,7]
[314433911,1708341047325,-387.202635,0.000404,2]
[314433912,1708341047334,-4490.37128229,0.00040415,2]
[314433913,1708341047343,-5104.82775028,0.00040415,2]
[314433914,1708341047353,-151.0,0.00040487,14]
[314433915,1708341047362,-179.657724,0.00040487,14]
[314433916,1708341047371,-151.0,0.00040487,14]
[314433917,1708341047381,-151.0,0.00040487,14]
[314433918,1708341047390,-151.0,0.00040487,14]
[314433919,1708341047399,-189.78365,0.00040487,14]
[314433920,1708341047408,-244.388329,0.00040487,14]
[314433921,1708341047418,-244.388329,0.00040487,14]
[314433922,1708341047427,-244.388329,0.00040487,14]
[314433923,1708341047436,-244.388329,0.00040487,14]
[314433924,1708341047446,-151.0,0.00040487,7]
[314433925,1708341047455,-151.0,0.00040487,7]
[314433926,1708341047466,-151.0,0.00040487,14]
[314433927,1708341047476,-151.0,0.00040487,14]
[314433928,1708341047485,-151.0,0.00040487,7]
[314433929,1708341047494,-151.0,0.00040487,7]
[314433930,1708341047504,-151.0,0.00040487,14]
[314433931,1708341047513,-151.0,0.00040487,14]
[314433932,1708341047523,-151.0,0.00040487,14]
[314433933,1708341047533,-151.0,0.00040487,14]
[314433934,1708341047543,-151.0,0.00040487,14]
[314433935,1708341047553,-151.0,0.00040487,14]
[314433936,1708341047563,-151.0,0.00040487,14]
[314433937,1708341047574,-151.0,0.00040487,14]
[314433938,1708341047583,-162.598902,0.00040487,14]
[314433939,1708341047593,-162.598902,0.00040487,14]
[314433940,1708341047602,-162.598902,0.00040487,14]
[314433941,1708341047611,-162.598902,0.00040487,14]
[314433942,1708341047620,-1048.267509,0.00040487,14]
[314433943,1708341047629,-1048.267509,0.00040487,14]
[314433944,1708341047639,-1048.267509,0.00040487,14]
[314433945,1708341047648,-1048.267509,0.00040487,14]
[314433946,1708341047657,-151.0,0.00040487,14]
[314433947,1708341047666,-151.0,0.00040487,14]
[314433948,1708341047675,-400.683307,0.00040487,2]
[314433949,1708341047685,-400.683307,0.00040487,2]
[314433950,1708341047694,-400.683307,0.00040487,2]
[314433951,1708341047703,-400.683307,0.00040487,2]
[314433952,1708341047712,-418.344515,0.00040487,14]
[314433953,1708341047721,-418.344515,0.00040487,14]
[314433954,1708341047730,-418.344515,0.00040487,14]
[314433955,1708341047741,-418.344515,0.00040487,14]
[314433956,1708341047752,-151.0,0.00040487,14]
[314433957,1708341047762,-151.0,0.00040487,14]
[314433958,1708341047772,-151.0,0.00040487,14]
[314433959,1708341047782,-151.0,0.00040487,14]
[314433960,1708341047791,-392.0511967,0.00040502,3]
[314433961,1708341047800,-283.46875159,0.00040502,3]
[314433962,1708341047810,-392.0511967,0.00040502,3]
[314433963,1708341047819,-283.46875159,0.00040502,3]
[314433964,1708341047829,-392.0511967,0.00040502,3]
[314433965,1708341047837,-283.46875159,0.00040502,3]
[314433966,1708341047847,-151.0,0.00040503,3]
[314433967,1708341047856,-151.0,0.00040503,3]
[314433968,1708341047865,-151.0,0.00040503,3]
[314433969,1708341047875,-268.601987,0.00040503,3]
[314433970,1708341047884,-151.0,0.00040503,14]
[314433971,1708341047893,-151.0,0.00040503,14]
[314433972,1708341047902,-151.0,0.00040503,14]
[314433973,1708341047911,-151.0,0.00040503,14]
[314433974,1708341047920,-166.208607,0.00040503,14]
[314433975,1708341047929,-166.208607,0.00040503,14]
[314433976,1708341047938,-166.208607,0.00040503,14]
[314433977,1708341047948,-166.208607,0.00040503,14]
[314433978,1708341047957,-1942.605783,0.00040503,14]
[314433979,1708341047967,-1942.605783,0.00040503,14]
[314433980,1708341047977,-233.221752,0.00040503,14]
[314433981,1708341047986,-233.221752,0.00040503,14]
[314433982,1708341047995,-233.221752,0.00040503,14]
[314433983,1708341048004,-233.221752,0.00040503,14]
[314433984,1708341048013,-151.0,0.00040503,14]
[314433985,1708341048022,-151.0,0.00040503,14]
[314433986,1708341048030,-188.216899,0.00040503,14]
[314433987,1708341048039,-188.216899,0.00040503,14]
[314433988,1708341048048,-188.216899,0.00040503,14]
[314433989,1708341048058,-188.216899,0.00040503,14]
[314433990,1708341048069,-180.708682,0.00040503,14]
[314433991,1708341048078,-180.708682,0.00040503,14]
[314433992,1708341048087,-180.708682,0.00040503,14]
[314433993,1708341048097,-180.708682,0.00040503,14]
[314433994,1708341048106,-155.708372,0.00040503,14]
[314433995,1708341048116,-155.708372,0.00040503,14]
[314433996,1708341048125,-155.708372,0.00040503,14]
[314433997,1708341048135,-155.708372,0.00040503,14]
[314433998,1708341048144,-151.0,0.00040503,14]
[314433999,1708341048154,-248.281659,0.00040503,14]
[314434000,1708341048164,-151.0,0.00040503,14]
[314434001,1708341048173,-151.0,0.00040503,14]
[314434002,1708341048183,-277.628139,0.00040503,14]
[314434003,1708341048192,-159.337444,0.00040503,14]
[314434004,1708341048203,-159.337444,0.00040503,14]
[314434005,1708341048215,-159.337444,0.00040503,14]
[314434006,1708341048224,-159.337444,0.00040503,14]
[314434007,1708341048234,-151.0,0.00040503,14]
[314434008,1708341048243,-151.0,0.00040503,14]
[314434009,1708341048253,-261.017657,0.00040503,14]
[314434010,1708341048263,-261.017657,0.00040503,14]
[314434011,1708341048272,-261.017657,0.00040503,14]
[314434012,1708341048282,-261.017657,0.00040503,14]
[314434013,1708341048292,-151.0,0.00040503,14]
[314434014,1708341048301,-151.0,0.00040503,14]
[314434015,1708341048310,-157.143915,0.00040503,14]
[314434016,1708341048319,-157.143915,0.00040503,14]
[314434017,1708341048328,-6702.925057,0.00040503,14]
[314434018,1708341048338,-6702.925057,0.00040503,14]
[314434019,1708341048347,-157.143915,0.00040503,14]
[314434020,1708341048356,-6702.925057,0.00040503,14]
[314434021,1708341048365,-157.143915,0.00040503,14]
[314434022,1708341048375,-6702.925057,0.00040503,14]
[314434023,1708341048385,-1047.982941,0.00040503,14]
[314434024,1708341048394,-1047.982941,0.00040503,14]
[314434025,1708341048403,-1047.982941,0.00040503,14]
[314434026,1708341048412,-1047.982941,0.00040503,14]
[314434027,1708341048423,-151.0,0.00040503,14]
[314434028,1708341048433,-151.0,0.00040503,14]
[314434029,1708341048443,-151.0,0.00040503,14]
[314434030,1708341048452,-267.140675,0.00040503,14]
[314434031,1708341048462,-151.0,0.00040503,14]
[314434032,1708341048470,-151.0,0.00040503,14]
[314434033,1708341048479,-151.0,0.00040503,14]
[314434034,1708341048489,-151.0,0.00040503,14]
[314434035,1708341048501,-151.0,0.00040503,14]
[314434036,1708341048512,-151.0,0.00040503,14]
[314434037,1708341048523,-218.968109,0.00040503,14]
[314434038,1708341048533,-218.968109,0.00040503,14]
[314434039,1708341048543,-672.834061,0.00040503,14]
[314434040,1708341048552,-672.834061,0.00040503,14]
[314434041,1708341048562,-207.568895,0.00040503,14]
[314434042,1708341048571,-218.968109,0.00040503,14]
[314434043,1708341048581,-218.968109,0.00040503,14]
[314434044,1708341048590,-672.834061,0.00040503,14]
[314434045,1708341048600,-672.834061,0.00040503,14]
[314434046,1708341048613,-269.157687,0.00040503,14]
[314434047,1708341048623,-269.157687,0.00040503,14]
[314434048,1708341048634,-269.157687,0.00040503,14]
[314434049,1708341048644,-151.0,0.00040503,14]
[314434050,1708341048654,-269.157687,0.00040503,14]
[314434051,1708341048663,-151.0,0.00040503,14]
[314434052,1708341048673,-643.987739,0.00040503,14]
[314434053,1708341048683,-643.987739,0.00040503,14]
[314434054,1708341048693,-199.525831,0.00040503,14]
[314434055,1708341048822,-643.987739,0.00040503,14]
[314434056,1708341048832,-199.525831,0.00040503,14]
[314434057,1708341048841,-643.987739,0.00040503,14]
[314434058,1708341048851,-151.0,0.00040503,14]
[314434059,1708341048860,-151.0,0.00040503,14]
[314434060,1708341048869,-199.525831,0.00040503,14]
[314434061,1708341048878,-199.525831,0.00040503,14]
[314434062,1708341048887,-4698.501562,0.00040503,14]
[314434063,1708341048896,-4698.501562,0.00040503,14]
[314434064,1708341048905,-202.523053,0.00040503,14]
[314434065,1708341048914,-202.523053,0.00040503,14]
[314434066,1708341048923,-202.523053,0.00040503,14]
[314434067,1708341048932,-4698.501562,0.00040503,14]
[314434068,1708341048941,-202.523053,0.00040503,14]
[314434069,1708341048950,-4698.501562,0.00040503,14]
[314434070,1708341048959,-198.395296,0.00040503,14]
[314434071,1708341048968,-198.395296,0.00040503,14]
[314434072,1708341048977,-198.395296,0.00040503,14]
[314434073,1708341048987,-198.395296,0.00040503,14]
[314434074,1708341048996,-151.0,0.00040503,14]
[314434075,1708341049005,-151.0,0.00040503,14]
[314434076,1708341049014,-2546.090286,0.00040503,14]
[314434077,1708341049023,-2546.090286,0.00040503,14]
[314434078,1708341049032,-151.0,0.00040503,14]
[314434079,1708341049041,-151.0,0.00040503,14]
[314434080,1708341049050,-2546.090286,0.00040503,14]
[314434081,1708341049059,-2546.090286,0.00040503,14]
[314434082,1708341049068,-691.3668,0.00040503,14]
[314434083,1708341049077,-182.288375,0.00040503,14]
[314434084,1708341049086,-691.3668,0.00040503,14]
[314434085,1708341049095,-182.288375,0.00040503,14]
[314434086,1708341049104,-691.3668,0.00040503,14]
[314434087,1708341049114,-691.3668,0.00040503,14]
[314434088,1708341049123,-182.288375,0.00040503,14]
[314434089,1708341049133,-182.288375,0.00040503,14]
[314434090,1708341049143,-179.037426,0.00040503,14]
[314434091,1708341049152,-179.037426,0.00040503,14]
[314434092,1708341049161,-179.037426,0.00040503,14]
[314434093,1708341049170,-179.037426,0.00040503,14]
[314434094,1708341049179,-7850.39445,0.00040503,14]
[314434095,1708341049188,-7850.39445,0.00040503,14]
[314434096,1708341049198,-7850.39445,0.00040503,14]
[314434097,1708341049211,-891.573653,0.00040503,14]
[314434098,1708341049220,-891.573653,0.00040503,14]
[314434099,1708341049229,-7850.39445,0.00040503,14]
[314434100,1708341049239,-891.573653,0.00040503,14]
[314434101,1708341049250,-891.573653,0.00040503,14]
[314434102,1708341049261,-178.57211622,0.00040503,30]
[314434103,1708341049271,-117538.8218776,0.00040503,2]
[314434104,1708341049280,-8549.04818775,0.00040503,3]
[314434105,1708341049291,-870.05219542,0.00040503,120]
[314434106,1708341049300,-1138.89693226,0.00040503,120]
[314434107,1708341049309,-1372.34906709,0.00040503,60]
[314434108,1708341049318,-270.77642402,0.00040503,120]
[314434109,1708341049327,-150475.92755094,0.00040503,2]
[314434110,1708341049337,-328.1008825,0.00040503,30]
[314434111,1708341049346,-170.83981171,0.00040503,30]
[314434112,1708341049355,-312.48999945,0.00040503,120]
[314434113,1708341049365,-355.00984534,0.00040503,120]
[314434114,1708341049373,-156.52846427,0.00040503,120]
[314434115,1708341049383,-757.93323932,0.00040503,30]
[314434116,1708341049392,-219.52767301,0.00040503,2]
[314434117,1708341049401,-2946.05431458,0.00040503,120]
[314434118,1708341049410,-577.43723592,0.00040503,30]
[314434119,1708341049419,-10302.598966,0.00040503,2]
[314434120,1708341049429,-5399.32854119,0.00040503,2]
[314434121,1708341049437,-300.0,0.00040503,15]
[314434122,1708341049447,-6688.76371315,0.00040503,2]
[314434123,1708341049456,-1998493.56910447,0.00040503,10]
[314434124,1708341049548,-353.53669802,0.0003778,28]
[314434125,1708341049557,-169.93330198,0.0003829,2]
[314434126,1708341049571,-92.19401919,0.0003829,2]
[314434127,1708341049580,-363.00432727,0.00040503,10]
[314434128,1708341049700,-48346.97248761,0.00040503,10]
[314434132,1708341475706,550.0,0.00025,3]
[314434133,1708342047115,-600.0,0.00027,3]
[314434134,1708342047136,-144.0753864,0.00029,3]
[314434135,1708342087394,-505.9246136,0.00029,3]
[314434136,1708342087418,-160.20570354,0.000329,2]
[314434137,1708342087442,-150.0,0.00032998,2]
[314434138,1708342087465,-19494.06852685,0.00032999,2]
[314434139,1708342087675,-11883.13286373,0.00033,2]
[314434140,1708342087697,-335.8452703,0.00033,5]
[314434141,1708342103144,-177.53,0.000333,2]
[314434142,1708342103168,-354.96,0.00033848,2]
[314434143,1708342103187,-618.11,0.00033938,2]
[314434144,1708342103206,-1000.0,0.00034299,2]
[314434145,1708342103225,-9942.0,0.000343,2]
[314434149,1708342132090,-23900.0,0.00035081,2]
[314434152,1708342151038,-228.59647435,0.00035258,7]
[314434153,1708342151059,-2000.0,0.00035436,2]
[314434154,1708342151079,-745.23,0.00035595,2]
[314434155,1708342151101,-172.62,0.00035876,2]
[314434156,1708342151123,-156.25,0.00035952,2]
[314434157,1708342151325,-888.19,0.00035964,2]
[314434158,1708342151347,-604.4434975,0.00036,4]
[314434159,1708342167902,-185.0,0.00036,2]
[314434160,1708342167928,-306.2,0.00036033,2]
[314434161,1708342167948,-1500.0,0.00036122,10]
[314434162,1708342167969,-267.26,0.00036185,2]
[314434163,1708342167989,-618.11,0.00036202,2]
[314434164,1708342168010,-210.0,0.00036298,2]
[314434165,1708342168030,-163.96,0.00036319,2]
[314434169,1708342174758,-10000.0,0.00036402,37]
[314434170,1708342186979,-382.3603,0.000368,2]
[314434171,1708342186999,-447.77,0.000368,2]
[314434172,1708342187018,-299.99,0.000368,30]
[314434173,1708342187037,-277.15199195,0.00036898,4]
[314434174,1708342187057,-1000.0,0.00036899,2]
[314434175,1708342187077,-1720.91990402,0.000369,7]
[314434183,1708342231986,-1805.0,0.000343,2]
[314434184,1708342231995,-206.31472587,0.00036402,4]
[314434185,1708342232005,-27122.96377673,0.000369,7]
[314434186,1708342232042,-16117.02575661,0.000369,7]
[314434193,1708342238004,-1195.84,0.000369,7]
[314434194,1708342238059,-155296.40095201,0.000369,7]
[314434195,1708342238118,-755.54521,0.000369,7]
[314434196,1708342238179,-4873.13399493,0.000369,7]
[314434197,1708342238234,-3872.52973253,0.000369,7]
[314434211,1708342241474,-16285.8743732,0.000369,7]
[314434212,1708342241484,-184.38543665,0.00037007,2]
[314434213,1708342241493,-745.23,0.00037239,2]
[314434214,1708342241502,-200.387623,0.00037307,2]
[314434215,1708342241511,-250.484529,0.00037307,2]
[314434216,1708342241523,-1249.2170185,0.00037384,10]
[314434217,1708342241533,-1000.0,0.00037394,2]
[314434218,1708342241543,-172.62,0.00037646,2]
[314434219,1708342241556,-184.38543664,0.00037662,2]
[314434220,1708342241566,-200.387623,0.00037774,2]
[314434221,1708342241576,-250.484529,0.00037774,2]
[314434222,1708342241585,-156.25,0.00037826,2]
[314434223,1708342241598,-138.97449521,0.00037879,2]
[314434224,1708342241619,-536.16788263,0.00037879,2]
[314434225,1708342241629,-383.07598511,0.000379,8]
[314434226,1708342241639,-210.71153226,0.0003794,2]
[314434233,1708342243200,-3647.47492516,0.00036907,2]
[314434234,1708342243209,-155.17846774,0.0003794,2]
[314434235,1708342243219,-165.37,0.00037953,2]
[314434236,1708342243229,-1249.2170185,0.0003798,10]
[314434237,1708342243239,-6246.0850925,0.0003799,10]
[314434238,1708342243249,-267.26,0.00037995,2]
[314434239,1708342243258,-397.0,0.00038,2]
[314434240,1708342243268,-402.57211513,0.00038,2]
[314434241,1708342243277,-402.57211513,0.00038,2]
[314434242,1708342243287,-402.57211513,0.00038,2]
[314434243,1708342243297,-402.57211513,0.00038,2]
[314434244,1708342243307,-402.57211513,0.00038,2]
[314434245,1708342243316,-402.57211513,0.00038,2]
[314434246,1708342243326,-402.57211513,0.00038,2]
[314434247,1708342243336,-402.57211513,0.00038,2]
[314434248,1708342243346,-402.57211513,0.00038,2]
[314434249,1708342243355,-402.57211513,0.00038,2]
[314434250,1708342243365,-402.57211513,0.00038,2]
[314434251,1708342243375,-402.57211513,0.00038,2]
[314434252,1708342243385,-402.57211513,0.00038,2]
[314434253,1708342243394,-402.57211513,0.00038,2]
[314434254,1708342243404,-402.57211513,0.00038,2]
[314434255,1708342243414,-402.57211513,0.00038,2]
[314434256,1708342243425,-402.57211513,0.00038,2]
[314434257,1708342243435,-402.57211513,0.00038,2]
[314434258,1708342243447,-402.57211513,0.00038,2]
[314434259,1708342243457,-402.57211513,0.00038,2]
[314434260,1708342243468,-402.57211513,0.00038,2]
[314434261,1708342243478,-402.57211513,0.00038,2]
[314434262,1708342243487,-402.57211513,0.00038,2]
[314434263,1708342243497,-402.57211513,0.00038,2]
[314434264,1708342243507,-402.57211513,0.00038,2]
[314434265,1708342243517,-402.57211513,0.00038,2]
[314434266,1708342243526,-402.57211513,0.00038,2]
[314434267,1708342243536,-402.57211513,0.00038,2]
[314434268,1708342243547,-402.57211513,0.00038,2]
[314434269,1708342243557,-402.57211513,0.00038,2]
[314434270,1708342243568,-402.57211513,0.00038,2]
[314434271,1708342243577,-402.57211513,0.00038,2]
[314434272,1708342243587,-402.57211513,0.00038,2]
[314434273,1708342243597,-402.57211513,0.00038,2]
[314434274,1708342243607,-402.57211513,0.00038,2]
[314434275,1708342243617,-402.57211513,0.00038,2]
[314434276,1708342243627,-402.57211513,0.00038,2]
[314434277,1708342243638,-402.57211513,0.00038,2]
[314434278,1708342243651,-402.57211513,0.00038,2]
[314434279,1708342243660,-402.57211513,0.00038,2]
[314434280,1708342243670,-402.57211513,0.00038,2]
[314434281,1708342243679,-402.57211513,0.00038,2]
[314434282,1708342243689,-52.89345794,0.00038,2]
[314434283,1708342243719,-349.67865719,0.00038,2]
[314434284,1708342243728,-402.57211513,0.00038,2]
[314434285,1708342243738,-402.57211513,0.00038,2]
[314434286,1708342243747,-402.57211513,0.00038,2]
[314434287,1708342243756,-402.57211513,0.00038,2]
[314434288,1708342243766,-402.57211513,0.00038,2]
[314434289,1708342243775,-402.57211513,0.00038,2]
[314434290,1708342243784,-402.57211513,0.00038,2]
[314434291,1708342243794,-402.57211513,0.00038,2]
[314434292,1708342243803,-402.57211513,0.00038,2]
[314434293,1708342243813,-402.57211513,0.00038,2]
[314434294,1708342243823,-219.94938642,0.00038,2]
[314434295,1708342243835,-182.62272871,0.00038,2]
[314434296,1708342243845,-402.57211513,0.00038,2]
[314434297,1708342243854,-402.57211513,0.00038,2]
[314434298,1708342243863,-402.57211513,0.00038,2]
[314434299,1708342243873,-402.57211513,0.00038,2]
[314434300,1708342243882,-402.57211513,0.00038,2]
[314434301,1708342243891,-402.57211513,0.00038,2]
[314434302,1708342243900,-402.57211513,0.00038,2]
[314434303,1708342243909,-402.57211513,0.00038,2]
[314434304,1708342243918,-402.57211513,0.00038,2]
[314434305,1708342243927,-402.57211513,0.00038,2]
[314434306,1708342243936,-402.57211513,0.00038,2]
[314434307,1708342243948,-402.57211513,0.00038,2]
[314434308,1708342243957,-402.57211513,0.00038,2]
[314434309,1708342243967,-402.57211513,0.00038,2]
[314434310,1708342243977,-402.57211513,0.00038,2]
[314434311,1708342243986,-402.57211513,0.00038,2]
[314434312,1708342243996,-402.57211513,0.00038,2]
[314434313,1708342244006,-402.57211513,0.00038,2]
[314434314,1708342244016,-402.57211513,0.00038,2]
[314434315,1708342244026,-402.57211513,0.00038,2]
[314434316,1708342244035,-402.57211513,0.00038,2]
[314434317,1708342244045,-402.57211513,0.00038,2]
[314434318,1708342244056,-402.57211513,0.00038,2]
[314434319,1708342244066,-402.57211513,0.00038,2]
[314434320,1708342244075,-402.57211513,0.00038,2]
[314434321,1708342244084,-402.57211513,0.00038,2]
[314434322,1708342244094,-402.57211513,0.00038,2]
[314434323,1708342244104,-402.57211513,0.00038,2]
[314434324,1708342244114,-402.57211513,0.00038,2]
[314434325,1708342244123,-402.57211513,0.00038,2]
[314434326,1708342244133,-402.57211513,0.00038,2]
[314434327,1708342244142,-402.57211513,0.00038,2]
[314434328,1708342244151,-402.57211513,0.00038,2]
[314434329,1708342244160,-402.57211513,0.00038,2]
[314434330,1708342244170,-402.57211513,0.00038,2]
[314434331,1708342244179,-402.57211513,0.00038,2]
[314434332,1708342244188,-402.57211513,0.00038,2]
[314434333,1708342244199,-402.57211513,0.00038,2]
[314434334,1708342244208,-402.57211513,0.00038,2]
[314434335,1708342244217,-402.57211513,0.00038,2]
[314434336,1708342244226,-402.57211513,0.00038,2]
[314434337,1708342244235,-402.57211513,0.00038,2]
[314434338,1708342244244,-402.57211513,0.00038,2]
[314434339,1708342244254,-402.57211513,0.00038,2]
[314434340,1708342244263,-402.57211513,0.0003808,2]
[314434341,1708342244273,-402.57211513,0.0003808,2]
[314434342,1708342244283,-2498.434037,0.0003809,10]
[314434343,1708342244293,-8695.51,0.000381,2]
[314434344,1708342244303,-8695.51,0.000381,2]
[314434345,1708342244312,-1249.2170185,0.00038166,10]
[314434346,1708342244321,-693.8,0.00038176,2]
[314434347,1708342244332,-200.387623,0.0003824,2]
[314434348,1708342244341,-250.484529,0.0003824,2]
[314434349,1708342244351,-383.07598505,0.00038257,8]
[314434350,1708342244360,-184.38543664,0.00038317,2]
[314434351,1708342244369,-721.37,0.00038356,15]
[314434352,1708342244379,-618.11,0.00038465,2]
[314434353,1708342244388,-165.37,0.00038495,2]
[314434354,1708342244398,-1249.2170185,0.00038542,10]
[314434355,1708342244407,-163.432888,0.00038551,7]
[314434356,1708342244417,-152.266666,0.00038551,7]
[314434357,1708342244426,-4634.24880736,0.00038552,14]
[314434358,1708342244435,-1738.66071119,0.00038552,12]
[314434359,1708342244445,-383.07598505,0.00038614,9]
[314434360,1708342244454,-397.0,0.0003863,14]
[314434361,1708342244464,-247.12842139,0.00038694,2]
[314434362,1708342244473,-200.387623,0.00038706,2]
[314434363,1708342244483,-250.484529,0.00038706,2]
[314434364,1708342244492,-1249.2170185,0.0003872,10]
[314434365,1708342244502,-2325.41,0.0003873,2]
[314434366,1708342244511,-745.23,0.00038883,2]
[314434367,1708342244522,-4996.868074,0.0003889,10]
[314434368,1708342244532,-1326.49,0.000389,3]
[314434369,1708342244542,-1212.98992009,0.000389,3]
[314434373,1708342245967,-206.31472587,0.00036402,4]
[314434374,1708342245978,-113.50007991,0.000389,3]
[314434375,1708342245988,-1326.49,0.000389,3]
[314434376,1708342245997,-969.2329292,0.000389,3]
[314434377,1708342246008,-357.2570708,0.000389,3]
[314434378,1708342246019,-1326.49,0.000389,3]
[314434379,1708342246029,-1326.49,0.000389,3]